[Event "Early-Titled-Tuesday-Blitz-February-20-2024"]
[Site "Chess.com"]
[Date "2024.02.20"]
[Round "4"]
[White "BardArtem"]
[Black "Rud_Makarian"]
[Result "0-1"]
[WhiteElo "2774"]
[BlackElo "3083"]
[TimeControl "180+1"]
[EndTime "8:40:23 PST"]
[Termination "Rud_Makarian won by resignation"]

1. e4 {[%clk 0:03:00]} 1... c5 {[%clk 0:03:00]} 2. Nf3 {[%clk 0:02:57.6]} 2...
d6 {[%clk 0:03:00.1]} 3. c3 {[%clk 0:02:58.2]} 3... Nf6 {[%clk 0:02:59.8]} 4.
Be2 {[%clk 0:02:58.5]} 4... g6 {[%clk 0:02:53.5]} 5. O-O {[%clk 0:02:56]} 5...
Bg7 {[%clk 0:02:53.4]} 6. Re1 {[%clk 0:02:55.6]} 6... O-O {[%clk 0:02:53.3]} 7.
Bf1 {[%clk 0:02:56.1]} 7... Bg4 {[%clk 0:02:44.6]} 8. h3 {[%clk 0:02:43.7]} 8...
Bxf3 {[%clk 0:02:42.5]} 9. Qxf3 {[%clk 0:02:44.6]} 9... Nc6 {[%clk 0:02:43.4]}
10. d3 {[%clk 0:02:45]} 10... Rb8 {[%clk 0:02:39.2]} 11. a4 {[%clk 0:02:29.9]}
11... a6 {[%clk 0:02:38.8]} 12. Be3 {[%clk 0:02:26.5]} 12... Nd7 {[%clk
0:02:34.2]} 13. Nd2 {[%clk 0:02:23]} 13... b5 {[%clk 0:02:34.6]} 14. axb5 {[%clk
0:02:23]} 14... axb5 {[%clk 0:02:35.5]} 15. Rac1 {[%clk 0:02:13.7]} 15... b4
{[%clk 0:02:30.8]} 16. Qd1 {[%clk 0:02:13.5]} 16... Ra8 {[%clk 0:02:20.2]} 17.
g3 {[%clk 0:02:09.9]} 17... Ra2 {[%clk 0:02:14.9]} 18. Nc4 {[%clk 0:02:07.5]}
18... Nb6 {[%clk 0:01:52.5]} 19. Qb3 {[%clk 0:02:03]} 19... Ra8 {[%clk
0:01:47.9]} 20. Ra1 {[%clk 0:01:52.8]} 20... Nxc4 {[%clk 0:01:46.2]} 21. Qxc4
{[%clk 0:01:53.7]} 21... Qb6 {[%clk 0:01:43.3]} 22. Kg2 {[%clk 0:01:49.3]} 22...
Ra5 {[%clk 0:01:36.5]} 23. Rac1 {[%clk 0:01:38.2]} 23... bxc3 {[%clk 0:01:27.7]}
24. bxc3 {[%clk 0:01:37.1]} 24... Ne5 {[%clk 0:01:26.1]} 25. Qb4 {[%clk
0:01:14.1]} 25... Rb5 {[%clk 0:01:05.7]} 26. Qa4 {[%clk 0:01:13.8]} 26... Qb7
{[%clk 0:01:06.3]} 27. f4 {[%clk 0:01:01.5]} 27... Ra8 {[%clk 0:00:58.5]} 28.
Qd1 {[%clk 0:00:58.6]} 28... Nd7 {[%clk 0:00:42.4]} 29. Kg1 {[%clk 0:00:57.7]}
29... Ra3 {[%clk 0:00:33.9]} 30. Bd2 {[%clk 0:00:53.3]} 30... Rbb3 {[%clk
0:00:32.3]} 31. Bg2 {[%clk 0:00:45.3]} 31... Bxc3 {[%clk 0:00:27.7]} 32. e5
{[%clk 0:00:45.6]} 32... Qb4 {[%clk 0:00:23.7]} 33. Bxc3 {[%clk 0:00:30.8]}
33... Rxc3 {[%clk 0:00:24.6]} 34. Rxc3 {[%clk 0:00:27.3]} 34... Qxc3 {[%clk
0:00:24.7]} 35. exd6 {[%clk 0:00:24.6]} 35... Qd4+ {[%clk 0:00:24.1]} 36. Kh2
{[%clk 0:00:24.8]} 36... Qxd6 {[%clk 0:00:23]} 37. Qe2 {[%clk 0:00:22.6]} 37...
e6 {[%clk 0:00:22]} 38. Rd1 {[%clk 0:00:21.9]} 38... h5 {[%clk 0:00:19.1]} 39.
h4 {[%clk 0:00:17.9]} 39... Nf6 {[%clk 0:00:18.4]} 40. Bf3 {[%clk 0:00:18.5]}
40... Qd4 {[%clk 0:00:15.9]} 41. Kg2 {[%clk 0:00:17.8]} 41... Kg7 {[%clk
0:00:16.4]} 42. Rc1 {[%clk 0:00:15]} 42... Rxd3 {[%clk 0:00:15.7]} 43. Qe1
{[%clk 0:00:02.4]} 43... Rd2+ {[%clk 0:00:14.8]} 44. Kh1 {[%clk 0:00:03.1]}
44... c4 {[%clk 0:00:14.2]} 45. Qe5 {[%clk 0:00:02.2]} 45... Qxe5 {[%clk
0:00:12.1]} 46. fxe5 {[%clk 0:00:02.5]} 46... Nd7 {[%clk 0:00:12.8]} 47. Rxc4
{[%clk 0:00:02.9]} 47... Nxe5 {[%clk 0:00:12.8]} 48. Rc3 {[%clk 0:00:03.5]}
48... Nxf3 {[%clk 0:00:12.7]} 49. Rxf3 {[%clk 0:00:04.4]} 49... f5 {[%clk
0:00:09.6]} 50. Ra3 {[%clk 0:00:03.9]} 50... Kf6 {[%clk 0:00:09.9]} 51. Kg1
{[%clk 0:00:04.5]} 51... g5 {[%clk 0:00:09.3]} 52. hxg5+ {[%clk 0:00:02.4]}
52... Kxg5 {[%clk 0:00:10.2]} 53. Ra4 {[%clk 0:00:03.1]} 53... Re2 {[%clk
0:00:09.1]} 54. Rb4 {[%clk 0:00:02.3]} 54... Re4 {[%clk 0:00:09.1]} 55. Rb8
{[%clk 0:00:02]} 55... h4 {[%clk 0:00:09.1]} 56. Rf8 {[%clk 0:00:01.1]} 56...
hxg3 {[%clk 0:00:08.6]} 0-1

[Event "Early-Titled-Tuesday-Blitz-February-20-2024"]
[Site "Chess.com"]
[Date "2024.02.20"]
[Round "4"]
[White "PavelShkapenko"]
[Black "Anton_Demchenko"]
[Result "0-1"]
[WhiteElo "2710"]
[BlackElo "2913"]
[TimeControl "180+1"]
[EndTime "8:40:23 PST"]
[Termination "Anton_Demchenko won by resignation"]

1. e4 {[%clk 0:03:00.9]} 1... e5 {[%clk 0:02:59.8]} 2. d4 {[%clk 0:02:57.7]}
2... exd4 {[%clk 0:03:00.1]} 3. Qxd4 {[%clk 0:02:58.1]} 3... Nc6 {[%clk
0:03:00.8]} 4. Qd3 {[%clk 0:02:58.2]} 4... Nf6 {[%clk 0:03:00.7]} 5. Nc3 {[%clk
0:02:57.7]} 5... Bc5 {[%clk 0:02:57.5]} 6. Bf4 {[%clk 0:02:35]} 6... O-O {[%clk
0:02:57.4]} 7. Nf3 {[%clk 0:02:32.1]} 7... Ng4 {[%clk 0:02:52.2]} 8. Bg3 {[%clk
0:02:31.2]} 8... d6 {[%clk 0:02:45.7]} 9. h3 {[%clk 0:02:30.1]} 9... Nge5 {[%clk
0:02:46]} 10. Nxe5 {[%clk 0:02:30.4]} 10... dxe5 {[%clk 0:02:43.1]} 11. Qxd8
{[%clk 0:02:28.1]} 11... Rxd8 {[%clk 0:02:42.5]} 12. Nd5 {[%clk 0:02:28.7]}
12... Nb4 {[%clk 0:02:24.2]} 13. Nxb4 {[%clk 0:02:22]} 13... Bxb4+ {[%clk
0:02:25.1]} 14. c3 {[%clk 0:02:22.6]} 14... Bd6 {[%clk 0:02:25.3]} 15. Bc4
{[%clk 0:02:23]} 15... Kf8 {[%clk 0:02:23.3]} 16. O-O-O {[%clk 0:02:19.2]} 16...
Ke7 {[%clk 0:02:21.4]} 17. Rd2 {[%clk 0:02:13.3]} 17... Rb8 {[%clk 0:02:12.9]}
18. Rhd1 {[%clk 0:02:07.7]} 18... f6 {[%clk 0:02:13.3]} 19. Kc2 {[%clk
0:01:49.3]} 19... b5 {[%clk 0:02:10.4]} 20. Bd5 {[%clk 0:01:49.2]} 20... a5
{[%clk 0:02:09]} 21. f3 {[%clk 0:01:49]} 21... Be6 {[%clk 0:01:37.5]} 22. Bf2
{[%clk 0:01:44.5]} 22... Bxd5 {[%clk 0:01:29.9]} 23. Rxd5 {[%clk 0:01:44.3]}
23... a4 {[%clk 0:01:23.9]} 24. Be3 {[%clk 0:01:25.3]} 24... Ke6 {[%clk
0:01:20.7]} 25. Bc5 {[%clk 0:01:07.6]} 25... g6 {[%clk 0:01:14]} 26. Ba7 {[%clk
0:01:06.2]} 26... Rb7 {[%clk 0:01:11.4]} 27. Bc5 {[%clk 0:01:06.1]} 27... f5
{[%clk 0:01:00]} 28. Bxd6 {[%clk 0:00:58.7]} 28... cxd6 {[%clk 0:00:57.4]} 29.
f4 {[%clk 0:00:50.9]} 29... Rdd7 {[%clk 0:00:45.5]} 30. fxe5 {[%clk 0:00:29.1]}
30... dxe5 {[%clk 0:00:45.6]} 31. exf5+ {[%clk 0:00:29.8]} 31... gxf5 {[%clk
0:00:45.6]} 32. Rc5 {[%clk 0:00:30.4]} 32... Rxd1 {[%clk 0:00:39.2]} 33. Kxd1
{[%clk 0:00:31.3]} 33... f4 {[%clk 0:00:39.9]} 34. Ke2 {[%clk 0:00:30.7]} 34...
Kf5 {[%clk 0:00:38.9]} 35. Kf3 {[%clk 0:00:27.3]} 35... b4 {[%clk 0:00:34.3]}
36. c4 {[%clk 0:00:23.2]} 36... b3 {[%clk 0:00:22.3]} 37. axb3 {[%clk
0:00:20.7]} 37... Rxb3+ {[%clk 0:00:21.7]} 38. Ke2 {[%clk 0:00:19.6]} 38...
Rxb2+ {[%clk 0:00:22.2]} 39. Kd3 {[%clk 0:00:20.2]} 39... Rxg2 {[%clk
0:00:19.5]} 40. Ra5 {[%clk 0:00:20.3]} 40... a3 {[%clk 0:00:17.7]} 41. c5 {[%clk
0:00:20.9]} 41... Rg3+ {[%clk 0:00:11.6]} 42. Kc4 {[%clk 0:00:21.1]} 42... f3
{[%clk 0:00:12.3]} 43. Rxa3 {[%clk 0:00:19.7]} 43... f2 {[%clk 0:00:10.9]} 44.
Rxg3 {[%clk 0:00:20.2]} 44... f1=Q+ {[%clk 0:00:11.2]} 45. Kb4 {[%clk
0:00:19.1]} 45... Qe1+ {[%clk 0:00:09.2]} 46. Rc3 {[%clk 0:00:19.2]} 46... Ke4
{[%clk 0:00:09.9]} 47. Kb3 {[%clk 0:00:19.3]} 47... Qb1+ {[%clk 0:00:07.6]} 48.
Kc4 {[%clk 0:00:18.2]} 48... Qa2+ {[%clk 0:00:08]} 49. Kb4 {[%clk 0:00:18.2]}
49... Kd4 {[%clk 0:00:08.3]} 50. Rb3 {[%clk 0:00:15.4]} 50... Qd2+ {[%clk
0:00:08]} 51. Kb5 {[%clk 0:00:14.8]} 51... Qe2+ {[%clk 0:00:06.8]} 52. Kb6
{[%clk 0:00:13.6]} 52... Qc4 {[%clk 0:00:07.2]} 53. Rb5 {[%clk 0:00:13.4]} 53...
Kd5 {[%clk 0:00:03.3]} 54. h4 {[%clk 0:00:12.5]} 54... e4 {[%clk 0:00:03.4]} 55.
c6+ {[%clk 0:00:08.3]} 55... Kd6 {[%clk 0:00:03.6]} 56. c7 {[%clk 0:00:07.4]}
56... Qxc7+ {[%clk 0:00:03.9]} 57. Ka6 {[%clk 0:00:08.2]} 57... Qc6+ {[%clk
0:00:03.8]} 58. Rb6 {[%clk 0:00:08]} 58... e3 {[%clk 0:00:03.8]} 0-1

[Event "Early-Titled-Tuesday-Blitz-February-20-2024"]
[Site "Chess.com"]
[Date "2024.02.20"]
[Round "4"]
[White "BlueWizzard"]
[Black "AmanteDeMoi"]
[Result "0-1"]
[WhiteElo "2888"]
[BlackElo "2617"]
[TimeControl "180+1"]
[EndTime "8:40:23 PST"]
[Termination "AmanteDeMoi won on time"]

1. d4 {[%clk 0:03:00.9]} 1... g6 {[%clk 0:02:59.8]} 2. Nc3 {[%clk 0:03:01.2]}
2... Bg7 {[%clk 0:03:00.1]} 3. Nf3 {[%clk 0:03:01.7]} 3... d6 {[%clk 0:03:00.2]}
4. g3 {[%clk 0:03:01.9]} 4... e5 {[%clk 0:03:00.4]} 5. dxe5 {[%clk 0:03:01.8]}
5... dxe5 {[%clk 0:03:01.3]} 6. Qxd8+ {[%clk 0:03:02.3]} 6... Kxd8 {[%clk
0:03:02.2]} 7. Be3 {[%clk 0:03:00.5]} 7... f6 {[%clk 0:03:02.4]} 8. O-O-O+
{[%clk 0:03:00.4]} 8... Nd7 {[%clk 0:03:03.1]} 9. g4 {[%clk 0:02:59.7]} 9... c6
{[%clk 0:03:02.6]} 10. h4 {[%clk 0:02:59.1]} 10... Kc7 {[%clk 0:03:02.8]} 11. h5
{[%clk 0:02:57.5]} 11... Nh6 {[%clk 0:03:02.9]} 12. Bh3 {[%clk 0:02:51.3]} 12...
g5 {[%clk 0:03:02.3]} 13. Nd2 {[%clk 0:02:49.6]} 13... b5 {[%clk 0:03:01.4]} 14.
Nde4 {[%clk 0:02:45.8]} 14... Nf7 {[%clk 0:03:00.2]} 15. h6 {[%clk 0:02:43.1]}
15... Nxh6 {[%clk 0:02:59.3]} 16. Ng3 {[%clk 0:02:39.1]} 16... Bf8 {[%clk
0:02:49.2]} 17. Nh5 {[%clk 0:02:33.4]} 17... Nf7 {[%clk 0:02:43.1]} 18. Bg2
{[%clk 0:02:31.1]} 18... Nd6 {[%clk 0:02:40.5]} 19. a4 {[%clk 0:02:19.6]} 19...
b4 {[%clk 0:02:39.9]} 20. Nb5+ {[%clk 0:02:19.3]} 20... Nxb5 {[%clk 0:02:22.9]}
21. axb5 {[%clk 0:02:19.1]} 21... Bb7 {[%clk 0:02:23.7]} 22. Rd3 {[%clk
0:01:48]} 22... Nb6 {[%clk 0:01:35.1]} 23. Nxf6 {[%clk 0:01:36.6]} 23... cxb5
{[%clk 0:01:34.2]} 24. Bxb7 {[%clk 0:01:29.9]} 24... Kxb7 {[%clk 0:01:26.7]} 25.
Rxh7+ {[%clk 0:01:28.5]} 25... Rxh7 {[%clk 0:01:25.4]} 26. Nxh7 {[%clk
0:01:29.4]} 26... Be7 {[%clk 0:01:16.8]} 27. Bxg5 {[%clk 0:00:56.4]} 27... Bxg5+
{[%clk 0:01:12.4]} 28. Nxg5 {[%clk 0:00:57.3]} 28... Rg8 {[%clk 0:01:11.3]} 29.
Nf7 {[%clk 0:00:57.7]} 29... e4 {[%clk 0:01:06.6]} 30. Nd6+ {[%clk 0:00:57.3]}
30... Kc6 {[%clk 0:01:06]} 31. Nxe4 {[%clk 0:00:57.3]} 31... Rxg4 {[%clk
0:01:06.6]} 32. Ng3 {[%clk 0:00:52.5]} 32... Nd5 {[%clk 0:00:50.9]} 33. Rf3
{[%clk 0:00:50.6]} 33... a5 {[%clk 0:00:45.9]} 34. Rf8 {[%clk 0:00:45.4]} 34...
a4 {[%clk 0:00:42.7]} 35. Rc8+ {[%clk 0:00:40.2]} 35... Kb6 {[%clk 0:00:41.8]}
36. Rd8 {[%clk 0:00:36.9]} 36... Kc5 {[%clk 0:00:39.2]} 37. Kd2 {[%clk
0:00:28.3]} 37... a3 {[%clk 0:00:23.9]} 38. Kc1 {[%clk 0:00:24.8]} 38... Rh4
{[%clk 0:00:15.6]} 39. Ra8 {[%clk 0:00:19.6]} 39... Nb6 {[%clk 0:00:11.2]} 40.
Ra6 {[%clk 0:00:16.1]} 40... Na4 {[%clk 0:00:09.7]} 41. b3 {[%clk 0:00:13]}
41... Nc3 {[%clk 0:00:08.6]} 42. Kd2 {[%clk 0:00:13.2]} 42... Rd4+ {[%clk
0:00:08.5]} 43. Ke3 {[%clk 0:00:11.3]} 43... Rd1 {[%clk 0:00:08.6]} 44. Ne4+
{[%clk 0:00:10.6]} 44... Nxe4 {[%clk 0:00:08.7]} 45. Kxe4 {[%clk 0:00:11.5]}
45... Rd2 {[%clk 0:00:07.9]} 46. Ke3 {[%clk 0:00:10.5]} 46... Rxc2 {[%clk
0:00:08.1]} 47. f4 {[%clk 0:00:11.2]} 47... Rc3+ {[%clk 0:00:07.2]} 48. Ke4
{[%clk 0:00:11.6]} 48... Rxb3 {[%clk 0:00:07.4]} 49. f5 {[%clk 0:00:12.3]} 49...
Rb2 {[%clk 0:00:07.5]} 50. Kf3 {[%clk 0:00:11.7]} 50... Rb1 {[%clk 0:00:06.1]}
51. Kf2 {[%clk 0:00:11.7]} 51... Rh1 {[%clk 0:00:05.3]} 52. f6 {[%clk
0:00:06.6]} 52... Rh6 {[%clk 0:00:05.5]} 53. e4 {[%clk 0:00:07]} 53... b3 {[%clk
0:00:04.8]} 54. Rxa3 {[%clk 0:00:06.9]} 54... Kb4 {[%clk 0:00:04.7]} 55. Ke3
{[%clk 0:00:07.8]} 55... Kxa3 {[%clk 0:00:04.9]} 0-1

[Event "Early-Titled-Tuesday-Blitz-February-20-2024"]
[Site "Chess.com"]
[Date "2024.02.20"]
[Round "4"]
[White "Bauman_Guy"]
[Black "JonaszBaum"]
[Result "1-0"]
[WhiteElo "2910"]
[BlackElo "2687"]
[TimeControl "180+1"]
[EndTime "8:40:30 PST"]
[Termination "Bauman_Guy won by checkmate"]

1. e4 {[%clk 0:03:00.9]} 1... e6 {[%clk 0:02:59]} 2. d4 {[%clk 0:03:00.8]} 2...
d5 {[%clk 0:02:58.7]} 3. Nc3 {[%clk 0:03:01.5]} 3... Bb4 {[%clk 0:02:56.8]} 4.
e5 {[%clk 0:03:01.6]} 4... c5 {[%clk 0:02:57]} 5. a3 {[%clk 0:03:02]} 5... Bxc3+
{[%clk 0:02:57.5]} 6. bxc3 {[%clk 0:03:02.9]} 6... Ne7 {[%clk 0:02:57.9]} 7. Qg4
{[%clk 0:03:03.4]} 7... Qc7 {[%clk 0:02:58.4]} 8. Bd3 {[%clk 0:03:02.3]} 8... c4
{[%clk 0:02:56.8]} 9. Be2 {[%clk 0:03:02.1]} 9... Qa5 {[%clk 0:02:57.2]} 10. Bd2
{[%clk 0:03:01.7]} 10... Nf5 {[%clk 0:02:56.9]} 11. Qh3 {[%clk 0:03:00.3]} 11...
Nc6 {[%clk 0:02:48.9]} 12. Nf3 {[%clk 0:02:57.2]} 12... Bd7 {[%clk 0:02:45.2]}
13. a4 {[%clk 0:02:55.5]} 13... b5 {[%clk 0:02:43.1]} 14. g4 {[%clk 0:02:55.6]}
14... Nfe7 {[%clk 0:02:42.5]} 15. O-O {[%clk 0:02:52.6]} 15... bxa4 {[%clk
0:02:41.3]} 16. Qg3 {[%clk 0:02:40.3]} 16... Rb8 {[%clk 0:02:16.9]} 17. Ra2
{[%clk 0:02:38.9]} 17... Rb6 {[%clk 0:02:04]} 18. Rfa1 {[%clk 0:02:36.3]} 18...
Nb8 {[%clk 0:01:56.8]} 19. Ne1 {[%clk 0:02:28]} 19... Kd8 {[%clk 0:01:54.9]} 20.
Bc1 {[%clk 0:02:27.4]} 20... Kc7 {[%clk 0:01:49.7]} 21. Ba3 {[%clk 0:02:26.9]}
21... Nc8 {[%clk 0:01:43.1]} 22. Bb4 {[%clk 0:02:15.8]} 22... Qa6 {[%clk
0:01:39.4]} 23. Qf4 {[%clk 0:02:05.9]} 23... Be8 {[%clk 0:01:27.7]} 24. Nf3
{[%clk 0:02:04.3]} 24... Qb7 {[%clk 0:00:51.1]} 25. Ng5 {[%clk 0:01:58.2]} 25...
h6 {[%clk 0:00:38.2]} 26. Bd6+ {[%clk 0:00:59.2]} 26... Nxd6 {[%clk 0:00:33.1]}
27. exd6+ {[%clk 0:01:00.1]} 27... Rxd6 {[%clk 0:00:32.6]} 28. Nxf7 {[%clk
0:01:00.2]} 28... Bxf7 {[%clk 0:00:29.7]} 29. Qxf7+ {[%clk 0:01:01.1]} 29... Rd7
{[%clk 0:00:24.9]} 30. Qf4+ {[%clk 0:00:56.4]} 30... Kc8 {[%clk 0:00:14.3]} 31.
Rxa4 {[%clk 0:00:56.2]} 31... Nc6 {[%clk 0:00:14.5]} 32. g5 {[%clk 0:00:45]}
32... a5 {[%clk 0:00:14.2]} 33. Bg4 {[%clk 0:00:43.5]} 33... Re8 {[%clk
0:00:11.5]} 34. g6 {[%clk 0:00:34]} 34... Qc7 {[%clk 0:00:11.6]} 35. Qe3 {[%clk
0:00:27.4]} 35... Rde7 {[%clk 0:00:10.6]} 36. R4a2 {[%clk 0:00:23.1]} 36... Qb6
{[%clk 0:00:09]} 37. f4 {[%clk 0:00:19.1]} 37... Kc7 {[%clk 0:00:08.9]} 38. Kh1
{[%clk 0:00:19.4]} 38... Rf8 {[%clk 0:00:08.4]} 39. Re1 {[%clk 0:00:15.4]} 39...
Rf6 {[%clk 0:00:08.6]} 40. Bh5 {[%clk 0:00:13.6]} 40... Rf5 {[%clk 0:00:08]} 41.
Bf3 {[%clk 0:00:11.8]} 41... Rf6 {[%clk 0:00:06.8]} 42. Rg1 {[%clk 0:00:12.2]}
42... Kb7 {[%clk 0:00:06]} 43. Raa1 {[%clk 0:00:10.8]} 43... Qc7 {[%clk
0:00:06.4]} 44. Rab1+ {[%clk 0:00:10.9]} 44... Kc8 {[%clk 0:00:07]} 45. f5
{[%clk 0:00:10]} 45... exf5 {[%clk 0:00:05.8]} 46. Qd2 {[%clk 0:00:08.5]} 46...
Rfe6 {[%clk 0:00:05.6]} 47. Rg2 {[%clk 0:00:07.5]} 47... Re3 {[%clk 0:00:05.8]}
48. Bxd5 {[%clk 0:00:07.5]} 48... f4 {[%clk 0:00:06.4]} 49. Rf1 {[%clk
0:00:07.6]} 49... a4 {[%clk 0:00:05.9]} 50. Bxc4 {[%clk 0:00:05.4]} 50... f3
{[%clk 0:00:05.6]} 51. Rgf2 {[%clk 0:00:05.3]} 51... a3 {[%clk 0:00:05.2]} 52.
Rxf3 {[%clk 0:00:04.8]} 52... Rxf3 {[%clk 0:00:05.8]} 53. Rxf3 {[%clk
0:00:05.7]} 53... Ne5 {[%clk 0:00:04.7]} 54. Rf8+ {[%clk 0:00:05.6]} 54... Kb7
{[%clk 0:00:02]} 55. Bd5+ {[%clk 0:00:06.1]} 55... Nc6 {[%clk 0:00:02.2]} 56.
Qc1 {[%clk 0:00:05.6]} 56... Qb6 {[%clk 0:00:02.8]} 57. Qxa3 {[%clk 0:00:04.6]}
57... Rd7 {[%clk 0:00:02.5]} 58. Bg2 {[%clk 0:00:02.9]} 58... Qb1+ {[%clk
0:00:02.6]} 59. Rf1 {[%clk 0:00:03.6]} 59... Qxc2 {[%clk 0:00:02.8]} 60. Qc5
{[%clk 0:00:04]} 60... Rc7 {[%clk 0:00:02.5]} 61. d5 {[%clk 0:00:04.5]} 61...
Nb8 {[%clk 0:00:01.8]} 62. Qb5+ {[%clk 0:00:04.9]} 62... Kc8 {[%clk 0:00:02]}
63. Rf8# {[%clk 0:00:04.6]} 1-0

[Event "Early-Titled-Tuesday-Blitz-February-20-2024"]
[Site "Chess.com"]
[Date "2024.02.20"]
[Round "4"]
[White "Raffael89"]
[Black "Chemim21"]
[Result "1-0"]
[WhiteElo "1849"]
[BlackElo "2209"]
[TimeControl "180+1"]
[EndTime "8:40:30 PST"]
[Termination "Raffael89 won on time"]

1. e4 {[%clk 0:02:59.9]} 1... e5 {[%clk 0:02:34.5]} 2. Nf3 {[%clk 0:02:59.1]}
2... Nc6 {[%clk 0:02:34.4]} 3. Bb5 {[%clk 0:02:59.2]} 3... a6 {[%clk 0:02:33.6]}
4. Ba4 {[%clk 0:02:58.7]} 4... b5 {[%clk 0:02:33.8]} 5. Bb3 {[%clk 0:02:57.9]}
5... Na5 {[%clk 0:02:34.5]} 6. O-O {[%clk 0:02:38.3]} 6... d6 {[%clk 0:02:10.8]}
7. d4 {[%clk 0:02:34.1]} 7... Nxb3 {[%clk 0:01:55.4]} 8. axb3 {[%clk 0:02:30]}
8... f6 {[%clk 0:01:55.4]} 9. dxe5 {[%clk 0:02:17.7]} 9... dxe5 {[%clk
0:01:53.4]} 10. Nc3 {[%clk 0:01:59.4]} 10... Qxd1 {[%clk 0:01:51.6]} 11. Rxd1
{[%clk 0:02:00.3]} 11... Bb7 {[%clk 0:01:40.6]} 12. Nd5 {[%clk 0:01:45.2]} 12...
O-O-O {[%clk 0:01:35.2]} 13. c4 {[%clk 0:01:33.9]} 13... Ne7 {[%clk 0:01:22.5]}
14. Be3 {[%clk 0:01:24.4]} 14... bxc4 {[%clk 0:01:05.6]} 15. bxc4 {[%clk
0:01:21.9]} 15... Nc6 {[%clk 0:01:02.5]} 16. Rdb1 {[%clk 0:00:58.5]} 16... Ne7
{[%clk 0:00:39.8]} 17. b4 {[%clk 0:00:52.9]} 17... Nxd5 {[%clk 0:00:39.7]} 18.
cxd5 {[%clk 0:00:39]} 18... g5 {[%clk 0:00:32.1]} 19. h3 {[%clk 0:00:34.9]}
19... h5 {[%clk 0:00:31.4]} 20. b5 {[%clk 0:00:32.1]} 20... axb5 {[%clk
0:00:29.7]} 21. Rxb5 {[%clk 0:00:32.8]} 21... c6 {[%clk 0:00:22.7]} 22. Rc1
{[%clk 0:00:23.3]} 22... c5 {[%clk 0:00:12.1]} 23. Bxc5 {[%clk 0:00:20.9]} 23...
Bxc5 {[%clk 0:00:12.8]} 24. Rcxc5+ {[%clk 0:00:18.5]} 24... Kb8 {[%clk
0:00:13.7]} 25. Rb6 {[%clk 0:00:13.9]} 25... g4 {[%clk 0:00:14.6]} 26. hxg4
{[%clk 0:00:10.1]} 26... hxg4 {[%clk 0:00:14.3]} 27. Nd2 {[%clk 0:00:09.5]}
27... Rd7 {[%clk 0:00:14.7]} 28. Rcb5 {[%clk 0:00:09.5]} 28... Ka7 {[%clk
0:00:14.9]} 29. Rxf6 {[%clk 0:00:09.3]} 29... Rc8 {[%clk 0:00:13.1]} 30. Ra5+
{[%clk 0:00:09]} 30... Kb8 {[%clk 0:00:12.6]} 31. Kf1 {[%clk 0:00:09.3]} 31...
Rc1+ {[%clk 0:00:11.7]} 32. Ke2 {[%clk 0:00:09.7]} 32... Rc2 {[%clk 0:00:12]}
33. Rb5 {[%clk 0:00:08.5]} 33... Ka7 {[%clk 0:00:11]} 34. Rfb6 {[%clk
0:00:08.1]} 34... Ba6 {[%clk 0:00:09.4]} 35. Ke3 {[%clk 0:00:05.7]} 35... Bxb5
{[%clk 0:00:09.1]} 36. Rxb5 {[%clk 0:00:06.6]} 36... Rc3+ {[%clk 0:00:08.6]} 37.
Ke2 {[%clk 0:00:06.3]} 37... Rf7 {[%clk 0:00:08]} 38. f3 {[%clk 0:00:06.1]}
38... g3 {[%clk 0:00:07.3]} 39. d6 {[%clk 0:00:05.2]} 39... Rc2 {[%clk
0:00:07.5]} 40. Rxe5 {[%clk 0:00:05.1]} 40... Rd7 {[%clk 0:00:06.7]} 41. Re7
{[%clk 0:00:05.4]} 41... Rxe7 {[%clk 0:00:02.9]} 42. dxe7 {[%clk 0:00:05.9]}
42... Rc8 {[%clk 0:00:03.3]} 43. f4 {[%clk 0:00:05.8]} 43... Re8 {[%clk
0:00:04]} 44. Kf3 {[%clk 0:00:05.8]} 44... Rxe7 {[%clk 0:00:04.8]} 45. Kxg3
{[%clk 0:00:06.4]} 45... Rd7 {[%clk 0:00:05]} 46. Nc4 {[%clk 0:00:05]} 46... Kb7
{[%clk 0:00:04.6]} 47. Kf3 {[%clk 0:00:04.5]} 47... Kc7 {[%clk 0:00:04.9]} 48.
Ne5 {[%clk 0:00:04.2]} 48... Rd1 {[%clk 0:00:03.7]} 49. Kg4 {[%clk 0:00:04.1]}
49... Kd6 {[%clk 0:00:04.3]} 50. Kf5 {[%clk 0:00:04.1]} 50... Ke7 {[%clk
0:00:05.2]} 51. g4 {[%clk 0:00:04.5]} 51... Rf1 {[%clk 0:00:05.1]} 52. g5 {[%clk
0:00:04.6]} 52... Kf8 {[%clk 0:00:05.7]} 53. g6 {[%clk 0:00:04.5]} 53... Rf2
{[%clk 0:00:05.9]} 54. Ng4 {[%clk 0:00:04.6]} 54... Rf1 {[%clk 0:00:05]} 55. Kg5
{[%clk 0:00:04.8]} 55... Kg7 {[%clk 0:00:05]} 56. f5 {[%clk 0:00:05.1]} 56...
Re1 {[%clk 0:00:05.2]} 57. f6+ {[%clk 0:00:05.2]} 57... Kf8 {[%clk 0:00:05.5]}
58. Kf5 {[%clk 0:00:05.3]} 58... Rf1+ {[%clk 0:00:05.5]} 59. Ke6 {[%clk
0:00:05.6]} 59... Rf4 {[%clk 0:00:03.6]} 60. Nh6 {[%clk 0:00:03.8]} 60... Rxe4+
{[%clk 0:00:03.5]} 61. Kf5 {[%clk 0:00:03.7]} 1-0